[Event "*** Titled Tuesday Blitz"]
[Site "Chess.com"]
[Date "2021.04.27"]
[Round "4"]
[White "gross-aleks"]
[Black "A-Fier"]
[Result "0-1"]
[WhiteElo "2572"]
[BlackElo "2839"]
[TimeControl "180+1"]
[EndTime "10:39:28 PDT"]
[Termination "A-Fier won by resignation"]

1. c4 {[%clk 0:02:45]} 1... Nf6 {[%clk 0:02:58.2]} 2. Nf3 {[%clk 0:02:44.6]}
2... e6 {[%clk 0:02:55.4]} 3. g3 {[%clk 0:02:45.5]} 3... b6 {[%clk 0:02:41.7]}
4. Bg2 {[%clk 0:02:46.4]} 4... Bb7 {[%clk 0:02:41.7]} 5. O-O {[%clk 0:02:45.9]}
5... c5 {[%clk 0:02:41.7]} 6. d3 {[%clk 0:02:45.9]} 6... Be7 {[%clk 0:02:40.6]}
7. e4 {[%clk 0:02:45.4]} 7... d6 {[%clk 0:02:41.1]} 8. Nc3 {[%clk 0:02:44.8]}
8... Nbd7 {[%clk 0:02:41.3]} 9. a3 {[%clk 0:02:39.7]} 9... a6 {[%clk 0:02:38.4]}
10. b4 {[%clk 0:02:37.3]} 10... O-O {[%clk 0:02:37.3]} 11. Rb1 {[%clk
0:02:36.5]} 11... Qc7 {[%clk 0:02:37.5]} 12. Bf4 {[%clk 0:02:32.5]} 12... Ne5
{[%clk 0:02:37]} 13. b5 {[%clk 0:02:25.2]} 13... a5 {[%clk 0:02:34.8]} 14. Ne1
{[%clk 0:02:17.2]} 14... Rad8 {[%clk 0:02:34.2]} 15. Nc2 {[%clk 0:02:15.1]}
15... Ng6 {[%clk 0:02:34.3]} 16. Bg5 {[%clk 0:02:12.6]} 16... h6 {[%clk
0:02:31.9]} 17. Bd2 {[%clk 0:01:46.9]} 17... d5 {[%clk 0:02:31.7]} 18. Qe2
{[%clk 0:01:38.2]} 18... dxc4 {[%clk 0:02:29.8]} 19. dxc4 {[%clk 0:01:37.2]}
19... Ne5 {[%clk 0:02:25.8]} 20. Rbd1 {[%clk 0:01:34.6]} 20... Rd7 {[%clk
0:02:03.7]} 21. Na4 {[%clk 0:01:26]} 21... Rfd8 {[%clk 0:02:01.8]} 22. Bf4
{[%clk 0:01:26]} 22... Rxd1 {[%clk 0:01:49.8]} 23. Rxd1 {[%clk 0:01:25.4]} 23...
Rxd1+ {[%clk 0:01:50.3]} 24. Qxd1 {[%clk 0:01:23]} 24... Nfd7 {[%clk 0:01:50.2]}
25. Qe2 {[%clk 0:01:12.7]} 25... Bf6 {[%clk 0:01:45]} 26. f3 {[%clk 0:01:11.8]}
26... Qd6 {[%clk 0:01:44.2]} 27. Bf1 {[%clk 0:01:08.8]} 27... g5 {[%clk
0:01:39.4]} 28. Be3 {[%clk 0:01:08.5]} 28... Ng6 {[%clk 0:01:39.6]} 29. Qd3
{[%clk 0:00:59.6]} 29... Qc7 {[%clk 0:01:36.9]} 30. Be2 {[%clk 0:00:42.3]} 30...
h5 {[%clk 0:01:37]} 31. Ne1 {[%clk 0:00:27.9]} 31... h4 {[%clk 0:01:35.7]} 32.
Kg2 {[%clk 0:00:20.9]} 32... hxg3 {[%clk 0:01:34]} 33. hxg3 {[%clk 0:00:21.8]}
33... g4 {[%clk 0:01:17.2]} 34. fxg4 {[%clk 0:00:18.5]} 34... Nde5 {[%clk
0:01:10]} 35. Qc2 {[%clk 0:00:18.1]} 35... Qd6 {[%clk 0:01:05.4]} 36. Bf4 {[%clk
0:00:16.4]} 36... Nxf4+ {[%clk 0:01:02.9]} 37. gxf4 {[%clk 0:00:17.3]} 37... Ng6
{[%clk 0:01:03.7]} 38. f5 {[%clk 0:00:14.9]} 38... Nf4+ {[%clk 0:01:03.1]} 39.
Kf3 {[%clk 0:00:14.6]} 39... Nh3 {[%clk 0:00:59]} 40. Ng2 {[%clk 0:00:13.9]}
40... Ng5+ {[%clk 0:00:53.3]} 41. Ke3 {[%clk 0:00:12.9]} 41... Qd4+ {[%clk
0:00:50.2]} 42. Kf4 {[%clk 0:00:11]} 42... Qf2+ {[%clk 0:00:24.9]} 0-1

[Event "*** Titled Tuesday Blitz"]
[Site "Chess.com"]
[Date "2021.04.27"]
[Round "4"]
[White "campomania3"]
[Black "korkmaz16"]
[Result "1-0"]
[WhiteElo "2241"]
[BlackElo "2414"]
[TimeControl "180+1"]
[EndTime "10:39:28 PDT"]
[Termination "campomania3 won by resignation"]

1. d4 {[%clk 0:03:00.9]} 1... d5 {[%clk 0:02:59.9]} 2. c4 {[%clk 0:03:00.8]}
2... e5 {[%clk 0:02:58.6]} 3. dxe5 {[%clk 0:03:00.2]} 3... d4 {[%clk 0:02:58.8]}
4. Nf3 {[%clk 0:03:00.2]} 4... Nc6 {[%clk 0:02:59]} 5. a3 {[%clk 0:02:59.9]}
5... Nge7 {[%clk 0:02:58.4]} 6. e4 {[%clk 0:02:55.5]} 6... Ng6 {[%clk
0:02:47.2]} 7. Bg5 {[%clk 0:02:51.1]} 7... Be7 {[%clk 0:02:41.1]} 8. Bxe7 {[%clk
0:02:44.2]} 8... Ngxe7 {[%clk 0:02:30.5]} 9. Nbd2 {[%clk 0:02:38.4]} 9... Bg4
{[%clk 0:02:28.2]} 10. h3 {[%clk 0:02:35.3]} 10... Bxf3 {[%clk 0:02:23.2]} 11.
Nxf3 {[%clk 0:02:34.5]} 11... Ng6 {[%clk 0:02:23.4]} 12. e6 {[%clk 0:02:30.1]}
12... fxe6 {[%clk 0:02:22.1]} 13. Bd3 {[%clk 0:02:29.1]} 13... e5 {[%clk
0:02:21.1]} 14. O-O {[%clk 0:02:27.8]} 14... O-O {[%clk 0:02:19.5]} 15. b4
{[%clk 0:02:27.3]} 15... Qf6 {[%clk 0:02:14.5]} 16. c5 {[%clk 0:02:24.6]} 16...
Nf4 {[%clk 0:02:08.4]} 17. Bc4+ {[%clk 0:02:24.1]} 17... Kh8 {[%clk 0:02:06.7]}
18. Kh2 {[%clk 0:02:15.5]} 18... Rad8 {[%clk 0:02:00.6]} 19. b5 {[%clk
0:02:00.1]} 19... Ne7 {[%clk 0:01:58.5]} 20. Ne1 {[%clk 0:01:57.3]} 20... d3
{[%clk 0:01:47.5]} 21. Nxd3 {[%clk 0:01:48.9]} 21... Neg6 {[%clk 0:01:38.9]} 22.
Qc2 {[%clk 0:01:42.9]} 22... Rd4 {[%clk 0:01:27.5]} 23. f3 {[%clk 0:01:22.5]}
23... Rfd8 {[%clk 0:01:15.6]} 24. Rad1 {[%clk 0:01:19.5]} 24... Qg5 {[%clk
0:00:37.5]} 25. g3 {[%clk 0:01:07.7]} 25... Nh5 {[%clk 0:00:20.9]} 26. Rg1
{[%clk 0:00:59.5]} 26... Qe3 {[%clk 0:00:20.1]} 27. Rgf1 {[%clk 0:00:15.8]}
27... c6 {[%clk 0:00:13.9]} 28. b6 {[%clk 0:00:11.6]} 28... axb6 {[%clk
0:00:13.7]} 29. cxb6 {[%clk 0:00:11.5]} 29... Qg5 {[%clk 0:00:14.6]} 30. Rg1
{[%clk 0:00:10.6]} 30... Qe7 {[%clk 0:00:14.2]} 31. a4 {[%clk 0:00:09.6]} 31...
Qd6 {[%clk 0:00:14.2]} 32. Nf2 {[%clk 0:00:08.7]} 32... Rd2 {[%clk 0:00:14.1]}
33. Rxd2 {[%clk 0:00:08.2]} 33... Qxd2 {[%clk 0:00:15]} 34. Qxd2 {[%clk
0:00:08.1]} 34... Rxd2 {[%clk 0:00:15.8]} 35. Kg2 {[%clk 0:00:08]} 35... Rd4
{[%clk 0:00:13.1]} 36. Rd1 {[%clk 0:00:07.9]} 36... Rxc4 {[%clk 0:00:11.9]} 37.
Rd8+ {[%clk 0:00:07]} 1-0

[Event "*** Titled Tuesday Blitz"]
[Site "Chess.com"]
[Date "2021.04.27"]
[Round "4"]
[White "Buffy7"]
[Black "ferch1ni"]
[Result "1-0"]
[WhiteElo "2689"]
[BlackElo "2352"]
[TimeControl "180+1"]
[EndTime "10:39:30 PDT"]
[Termination "Buffy7 won by resignation"]

1. Nf3 {[%clk 0:03:00.9]} 1... c5 {[%clk 0:02:53]} 2. g3 {[%clk 0:03:01.8]} 2...
Nc6 {[%clk 0:02:51.1]} 3. Bg2 {[%clk 0:03:02.7]} 3... g6 {[%clk 0:02:49.9]} 4.
O-O {[%clk 0:03:03.6]} 4... Bg7 {[%clk 0:02:49.8]} 5. d3 {[%clk 0:03:04.5]} 5...
e5 {[%clk 0:02:50]} 6. c4 {[%clk 0:03:04.3]} 6... Nge7 {[%clk 0:02:50.4]} 7. Nc3
{[%clk 0:03:05.2]} 7... O-O {[%clk 0:02:50.6]} 8. Ne1 {[%clk 0:03:04.6]} 8... b6
{[%clk 0:02:46.9]} 9. Nc2 {[%clk 0:03:04.6]} 9... Bb7 {[%clk 0:02:45.9]} 10. Bg5
{[%clk 0:03:03.2]} 10... h6 {[%clk 0:02:37.3]} 11. Bxe7 {[%clk 0:03:03.2]} 11...
Qxe7 {[%clk 0:02:38.2]} 12. Ne3 {[%clk 0:03:03]} 12... d6 {[%clk 0:02:35.5]} 13.
Ned5 {[%clk 0:03:02.9]} 13... Qd7 {[%clk 0:02:32.4]} 14. Rb1 {[%clk 0:03:02.7]}
14... Nd4 {[%clk 0:02:31.5]} 15. a3 {[%clk 0:03:01.2]} 15... f5 {[%clk
0:02:13.6]} 16. b4 {[%clk 0:03:01.4]} 16... Kh7 {[%clk 0:02:10.7]} 17. a4 {[%clk
0:02:47.3]} 17... Rf7 {[%clk 0:01:59.1]} 18. a5 {[%clk 0:02:47]} 18... cxb4
{[%clk 0:01:53.7]} 19. Rxb4 {[%clk 0:02:47.9]} 19... bxa5 {[%clk 0:01:53.6]} 20.
Rxb7 {[%clk 0:02:48.2]} 20... Qxb7 {[%clk 0:01:52.3]} 21. Nf6+ {[%clk
0:02:48.2]} 21... Bxf6 {[%clk 0:01:52.9]} 22. Bxb7 {[%clk 0:02:48.7]} 22... Rxb7
{[%clk 0:01:53.8]} 23. e3 {[%clk 0:02:43]} 23... Nb3 {[%clk 0:01:47.8]} 24. Nd5
{[%clk 0:02:42.9]} 24... Bg7 {[%clk 0:01:44.6]} 25. Qc2 {[%clk 0:02:37.5]} 25...
a4 {[%clk 0:01:42.4]} 26. Qa2 {[%clk 0:02:37.4]} 26... a5 {[%clk 0:01:40.3]} 27.
Qxa4 {[%clk 0:02:33.8]} 27... Nc5 {[%clk 0:01:40.6]} 28. Qc6 {[%clk 0:02:21.5]}
28... Raa7 {[%clk 0:01:10.5]} 29. Qxd6 {[%clk 0:02:17.7]} 29... Nxd3 {[%clk
0:01:09.3]} 30. Nf6+ {[%clk 0:01:58.7]} 30... Bxf6 {[%clk 0:01:08.1]} 31. Qxf6
{[%clk 0:01:58.9]} 31... a4 {[%clk 0:01:04.4]} 32. c5 {[%clk 0:01:58.2]} 32...
Nxc5 {[%clk 0:00:58.8]} 33. Qxe5 {[%clk 0:01:57.3]} 33... Nb3 {[%clk 0:00:51.1]}
34. Rd1 {[%clk 0:01:56.6]} 34... a3 {[%clk 0:00:50.9]} 35. Rd8 {[%clk
0:01:55.3]} 35... Rg7 {[%clk 0:00:47.8]} 36. Qe8 {[%clk 0:01:55.3]} 36... g5
{[%clk 0:00:45.6]} 37. Qh8+ {[%clk 0:01:36.6]} 37... Kg6 {[%clk 0:00:44.2]} 38.
Rd6+ {[%clk 0:01:35.4]} 38... Kf7 {[%clk 0:00:14.6]} 39. Qxh6 {[%clk 0:01:36.3]}
39... Nc5 {[%clk 0:00:10.3]} 40. Qf6+ {[%clk 0:01:24.6]} 40... Kg8 {[%clk
0:00:10.3]} 41. Rd8+ {[%clk 0:01:23.8]} 41... Kh7 {[%clk 0:00:10.5]} 42. Qxf5+
{[%clk 0:01:24.1]} 42... Rg6 {[%clk 0:00:09.4]} 43. Qxc5 {[%clk 0:01:18.6]}
43... Rga6 {[%clk 0:00:08.4]} 44. Qf5+ {[%clk 0:01:13.1]} 44... Kh6 {[%clk
0:00:06.9]} 45. Rh8+ {[%clk 0:01:10.4]} 45... Kg7 {[%clk 0:00:07.3]} 46. Rh7+
{[%clk 0:01:04.5]} 46... Kg8 {[%clk 0:00:07.6]} 47. Rxa7 {[%clk 0:00:58.2]}
47... Rxa7 {[%clk 0:00:08.5]} 48. Qd5+ {[%clk 0:00:58.3]} 48... Kh7 {[%clk
0:00:07.2]} 49. Qd4 {[%clk 0:00:50.5]} 49... Ra5 {[%clk 0:00:03.8]} 50. Qb6
{[%clk 0:00:46.2]} 50... Ra4 {[%clk 0:00:01.6]} 51. Qb7+ {[%clk 0:00:45.9]}
51... Kg6 {[%clk 0:00:01.9]} 52. Qc6+ {[%clk 0:00:46]} 52... Kh5 {[%clk
0:00:02.3]} 53. Qxa4 {[%clk 0:00:46.9]} 53... g4 {[%clk 0:00:03.2]} 54. Qxa3
{[%clk 0:00:46]} 1-0

[Event "*** Titled Tuesday Blitz"]
[Site "Chess.com"]
[Date "2021.04.27"]
[Round "4"]
[White "bennyficial"]
[Black "tylityli"]
[Result "0-1"]
[WhiteElo "2197"]
[BlackElo "2337"]
[TimeControl "180+1"]
[EndTime "10:39:33 PDT"]
[Termination "tylityli won by resignation"]

1. Nf3 {[%clk 0:03:00.9]} 1... Nf6 {[%clk 0:02:58.4]} 2. c4 {[%clk 0:02:57]}
2... c5 {[%clk 0:02:54.9]} 3. b3 {[%clk 0:02:50.7]} 3... d5 {[%clk 0:02:53.2]}
4. e3 {[%clk 0:02:35.2]} 4... a6 {[%clk 0:02:50.5]} 5. Bb2 {[%clk 0:02:30.2]}
5... Nc6 {[%clk 0:02:48.9]} 6. d4 {[%clk 0:02:27]} 6... dxc4 {[%clk 0:02:46]} 7.
Bxc4 {[%clk 0:02:23.7]} 7... cxd4 {[%clk 0:02:45.5]} 8. Nxd4 {[%clk 0:02:21.1]}
8... Nxd4 {[%clk 0:02:41.6]} 9. Bxd4 {[%clk 0:02:22]} 9... Bg4 {[%clk
0:02:28.2]} 10. f3 {[%clk 0:02:09.1]} 10... Bh5 {[%clk 0:02:24.4]} 11. O-O
{[%clk 0:02:02.7]} 11... b5 {[%clk 0:02:21.3]} 12. Bd3 {[%clk 0:01:57.9]} 12...
e6 {[%clk 0:02:21.2]} 13. Nd2 {[%clk 0:01:47.4]} 13... Bd6 {[%clk 0:02:13.5]}
14. Qe2 {[%clk 0:01:25.5]} 14... O-O {[%clk 0:02:10.7]} 15. Rac1 {[%clk
0:01:20]} 15... Rc8 {[%clk 0:02:04.8]} 16. Rxc8 {[%clk 0:01:19.4]} 16... Qxc8
{[%clk 0:02:04.5]} 17. Bxf6 {[%clk 0:01:16.7]} 17... gxf6 {[%clk 0:02:05.4]} 18.
Ne4 {[%clk 0:01:14.8]} 18... Be7 {[%clk 0:02:04.7]} 19. Qb2 {[%clk 0:00:56.9]}
19... Bg6 {[%clk 0:01:55.8]} 20. Rc1 {[%clk 0:00:53.6]} 20... Qd8 {[%clk
0:01:54.7]} 21. Bb1 {[%clk 0:00:51.7]} 21... Qb6 {[%clk 0:01:43.1]} 22. Kf2
{[%clk 0:00:48.3]} 22... Rd8 {[%clk 0:01:32.4]} 23. Nxf6+ {[%clk 0:00:37.6]}
23... Bxf6 {[%clk 0:01:31.2]} 24. Qxf6 {[%clk 0:00:38.5]} 24... Bxb1 {[%clk
0:01:17.5]} 25. Rxb1 {[%clk 0:00:39.4]} 25... Rd2+ {[%clk 0:01:13.6]} 26. Kg3
{[%clk 0:00:39.2]} 26... Qxe3 {[%clk 0:01:00.9]} 27. h4 {[%clk 0:00:39.1]} 27...
Qf2+ {[%clk 0:00:56.6]} 28. Kf4 {[%clk 0:00:38]} 28... Qxg2 {[%clk 0:00:51.2]}
29. Qg5+ {[%clk 0:00:37]} 29... Qxg5+ {[%clk 0:00:49.4]} 30. hxg5 {[%clk
0:00:37.9]} 30... Rxa2 {[%clk 0:00:49.4]} 31. Rd1 {[%clk 0:00:37.8]} 31... Rb2
{[%clk 0:00:47.5]} 32. Rd3 {[%clk 0:00:34.9]} 32... a5 {[%clk 0:00:45.2]} 33.
Ke5 {[%clk 0:00:35.3]} 33... Kg7 {[%clk 0:00:44.3]} 34. f4 {[%clk 0:00:33]}
34... Kg6 {[%clk 0:00:39.8]} 35. Rc3 {[%clk 0:00:27.3]} 35... Re2+ {[%clk
0:00:37.2]} 36. Kd6 {[%clk 0:00:26]} 36... Rf2 {[%clk 0:00:36.1]} 37. Rc5 {[%clk
0:00:25.5]} 37... Rxf4 {[%clk 0:00:34.9]} 38. Rxb5 {[%clk 0:00:25.2]} 38... Rf5
{[%clk 0:00:34.1]} 39. Rb8 {[%clk 0:00:23.3]} 39... Kxg5 {[%clk 0:00:31.7]} 40.
Ke7 {[%clk 0:00:23.5]} 40... h5 {[%clk 0:00:30.4]} 41. Rg8+ {[%clk 0:00:23]}
41... Kf4 {[%clk 0:00:30]} 42. Kd6 {[%clk 0:00:23]} 42... h4 {[%clk 0:00:29.4]}
43. Rh8 {[%clk 0:00:22.7]} 43... Kg3 {[%clk 0:00:28.8]} 44. Rg8+ {[%clk
0:00:23.3]} 44... Kf3 {[%clk 0:00:25.4]} 45. Rg1 {[%clk 0:00:23.2]} 45... h3
{[%clk 0:00:24.3]} 46. Rg8 {[%clk 0:00:17.4]} 46... h2 {[%clk 0:00:22.7]} 47.
Rh8 {[%clk 0:00:17.7]} 47... Kg2 {[%clk 0:00:21.6]} 0-1

[Event "*** Titled Tuesday Blitz"]
[Site "Chess.com"]
[Date "2021.04.27"]
[Round "4"]
[White "JoliyRoger"]
[Black "DarZay"]
[Result "1-0"]
[WhiteElo "2403"]
[BlackElo "2173"]
[TimeControl "180+1"]
[EndTime "10:39:34 PDT"]
[Termination "JoliyRoger won on time"]

1. Nf3 {[%clk 0:03:00.9]} 1... Nf6 {[%clk 0:02:57.6]} 2. c4 {[%clk 0:03:01.3]}
2... e6 {[%clk 0:02:55.7]} 3. Nc3 {[%clk 0:03:01.7]} 3... d5 {[%clk 0:02:55.7]}
4. cxd5 {[%clk 0:03:02.3]} 4... exd5 {[%clk 0:02:55.9]} 5. d4 {[%clk 0:03:02.8]}
5... Bb4 {[%clk 0:02:55.4]} 6. Bg5 {[%clk 0:03:02.8]} 6... Nbd7 {[%clk
0:02:50.5]} 7. e3 {[%clk 0:02:59.5]} 7... h6 {[%clk 0:02:49.4]} 8. Bxf6 {[%clk
0:02:52.9]} 8... Nxf6 {[%clk 0:02:49.1]} 9. Bd3 {[%clk 0:02:53.8]} 9... O-O
{[%clk 0:02:43.6]} 10. Qc2 {[%clk 0:02:52.8]} 10... b6 {[%clk 0:02:28.8]} 11.
O-O {[%clk 0:02:50.6]} 11... c5 {[%clk 0:02:28.9]} 12. dxc5 {[%clk 0:02:42.6]}
12... bxc5 {[%clk 0:02:28.7]} 13. Rad1 {[%clk 0:02:43.2]} 13... Bb7 {[%clk
0:02:26.1]} 14. Na4 {[%clk 0:02:32]} 14... Rc8 {[%clk 0:02:19.3]} 15. a3 {[%clk
0:02:32]} 15... c4 {[%clk 0:02:07.8]} 16. axb4 {[%clk 0:02:02.8]} 16... cxd3
{[%clk 0:02:07.3]} 17. Qxd3 {[%clk 0:02:03.5]} 17... Ne4 {[%clk 0:01:01]} 18.
Rc1 {[%clk 0:01:58.1]} 18... Qf6 {[%clk 0:00:56.3]} 19. Qd4 {[%clk 0:01:49.7]}
19... Qa6 {[%clk 0:00:46.5]} 20. Nc5 {[%clk 0:01:46.6]} 20... Nxc5 {[%clk
0:00:43.8]} 21. bxc5 {[%clk 0:01:43.9]} 21... Qb5 {[%clk 0:00:43]} 22. b4 {[%clk
0:01:43.7]} 22... a5 {[%clk 0:00:42.7]} 23. bxa5 {[%clk 0:01:42.6]} 23... Qxa5
{[%clk 0:00:42.9]} 24. h3 {[%clk 0:01:38.4]} 24... Ba6 {[%clk 0:00:41.1]} 25.
Ra1 {[%clk 0:01:24.9]} 25... Qb5 {[%clk 0:00:32.9]} 26. Rfb1 {[%clk 0:01:23.5]}
26... Qc4 {[%clk 0:00:29.7]} 27. Rc1 {[%clk 0:01:23.5]} 27... Qb5 {[%clk
0:00:25.3]} 28. Rab1 {[%clk 0:00:56.1]} 28... Qd3 {[%clk 0:00:22.9]} 29. Ne5
{[%clk 0:00:45.7]} 29... Qxd4 {[%clk 0:00:18.8]} 30. exd4 {[%clk 0:00:45.9]}
30... f6 {[%clk 0:00:18.9]} 31. Nd7 {[%clk 0:00:42.4]} 31... Rfd8 {[%clk
0:00:18.6]} 32. Nb6 {[%clk 0:00:42.9]} 32... Rc6 {[%clk 0:00:16.8]} 33. Re1
{[%clk 0:00:40]} 33... Kf7 {[%clk 0:00:16.6]} 34. Ra1 {[%clk 0:00:39.8]} 34...
Bc4 {[%clk 0:00:12.6]} 35. Ra7+ {[%clk 0:00:40.2]} 35... Kg6 {[%clk 0:00:12.4]}
36. Ree7 {[%clk 0:00:40.5]} 36... Rg8 {[%clk 0:00:12.5]} 37. Kh2 {[%clk
0:00:29]} 37... Kf5 {[%clk 0:00:11.3]} 38. g4+ {[%clk 0:00:21.1]} 38... Kf4
{[%clk 0:00:11.2]} 39. Kg2 {[%clk 0:00:21.4]} 39... g5 {[%clk 0:00:06.3]} 40.
Ra3 {[%clk 0:00:21.7]} 1-0

[Event "*** Titled Tuesday Blitz"]
[Site "Chess.com"]
[Date "2021.04.27"]
[Round "4"]
[White "moro182"]
[Black "Zq1"]
[Result "0-1"]
[WhiteElo "2705"]
[BlackElo "2545"]
[TimeControl "180+1"]
[EndTime "10:39:35 PDT"]
[Termination "Zq1 won by resignation"]

1. d4 {[%clk 0:03:00.9]} 1... Nf6 {[%clk 0:02:56.4]} 2. c4 {[%clk 0:03:01.2]}
2... a6 {[%clk 0:02:54.7]} 3. Nc3 {[%clk 0:02:57]} 3... c5 {[%clk 0:02:54]} 4.
Nf3 {[%clk 0:02:56.2]} 4... cxd4 {[%clk 0:02:53.2]} 5. Nxd4 {[%clk 0:02:57.1]}
5... d5 {[%clk 0:02:53.4]} 6. cxd5 {[%clk 0:02:54.8]} 6... Nxd5 {[%clk
0:02:52.6]} 7. Bd2 {[%clk 0:02:28.3]} 7... e5 {[%clk 0:02:51.7]} 8. Nb3 {[%clk
0:02:22.6]} 8... Nc6 {[%clk 0:02:44.9]} 9. e4 {[%clk 0:02:20]} 9... Nxc3 {[%clk
0:02:37.1]} 10. Bxc3 {[%clk 0:02:20.9]} 10... Be6 {[%clk 0:02:34.1]} 11. Be2
{[%clk 0:02:17.3]} 11... Be7 {[%clk 0:02:30.4]} 12. O-O {[%clk 0:02:17]} 12...
O-O {[%clk 0:02:30.4]} 13. Bd2 {[%clk 0:01:53.4]} 13... Rc8 {[%clk 0:02:23.9]}
14. Be3 {[%clk 0:01:52.6]} 14... Nb4 {[%clk 0:02:15.6]} 15. Bd2 {[%clk
0:01:32.4]} 15... Qb6 {[%clk 0:01:56.6]} 16. Be3 {[%clk 0:01:31.1]} 16... Qc6
{[%clk 0:01:47.7]} 17. Rc1 {[%clk 0:01:23.8]} 17... Qxe4 {[%clk 0:01:43.8]} 18.
Bf3 {[%clk 0:01:21.2]} 18... Qd3 {[%clk 0:01:34.5]} 19. Rxc8 {[%clk 0:00:59.5]}
19... Rxc8 {[%clk 0:01:32.9]} 20. Qxd3 {[%clk 0:00:56.2]} 20... Nxd3 {[%clk
0:01:32.7]} 21. Bxb7 {[%clk 0:00:54.9]} 21... Rb8 {[%clk 0:01:32]} 22. Bxa6
{[%clk 0:00:53.2]} 22... Nxb2 {[%clk 0:01:32]} 23. Rc1 {[%clk 0:00:44.8]} 23...
f6 {[%clk 0:01:20.5]} 24. Rc7 {[%clk 0:00:39.6]} 24... Bf8 {[%clk 0:01:17.7]}
25. h4 {[%clk 0:00:31.8]} 25... h5 {[%clk 0:01:15.6]} 26. Rb7 {[%clk 0:00:21.1]}
26... Ra8 {[%clk 0:01:12.2]} 27. Rb6 {[%clk 0:00:16.2]} 27... Bc4 {[%clk
0:01:05.4]} 28. Bxc4+ {[%clk 0:00:11.5]} 28... Nxc4 {[%clk 0:01:04.2]} 29. Rb7
{[%clk 0:00:07.2]} 29... Nxe3 {[%clk 0:01:03.3]} 30. fxe3 {[%clk 0:00:08.1]}
30... Rxa2 {[%clk 0:01:02.7]} 31. Kf1 {[%clk 0:00:08.5]} 31... Rb2 {[%clk
0:00:58.4]} 32. Na5 {[%clk 0:00:06.6]} 32... Rxb7 {[%clk 0:00:53.6]} 33. Nxb7
{[%clk 0:00:07.5]} 33... e4 {[%clk 0:00:52.4]} 34. Na5 {[%clk 0:00:06.5]} 34...
Kf7 {[%clk 0:00:51.6]} 35. Kf2 {[%clk 0:00:06.2]} 35... Ke6 {[%clk 0:00:51.3]}
36. Nb3 {[%clk 0:00:05.8]} 36... Kf5 {[%clk 0:00:48.7]} 37. Nd4+ {[%clk
0:00:05.5]} 37... Kg4 {[%clk 0:00:48.4]} 38. Ne6 {[%clk 0:00:05.4]} 38... Bd6
{[%clk 0:00:46.2]} 39. Nxg7 {[%clk 0:00:05.2]} 39... Bg3+ {[%clk 0:00:45.9]} 40.
Ke2 {[%clk 0:00:03.2]} 40... Bxh4 {[%clk 0:00:46.4]} 41. Ne6 {[%clk 0:00:03.7]}
41... Kg3 {[%clk 0:00:42.8]} 42. Nf4 {[%clk 0:00:03.8]} 42... Bg5 {[%clk
0:00:39.8]} 43. Ne6 {[%clk 0:00:04.1]} 43... Kxg2 {[%clk 0:00:38.9]} 44. Nc5
{[%clk 0:00:04.5]} 44... f5 {[%clk 0:00:37.9]} 45. Ne6 {[%clk 0:00:05]} 45...
Bh6 {[%clk 0:00:37.2]} 46. Nd4 {[%clk 0:00:05.1]} 46... h4 {[%clk 0:00:37.3]}
47. Nxf5 {[%clk 0:00:05.4]} 47... h3 {[%clk 0:00:37.3]} 48. Nxh6 {[%clk
0:00:02.9]} 48... h2 {[%clk 0:00:36.9]} 49. Nf5 {[%clk 0:00:03.5]} 49... h1=Q
{[%clk 0:00:36.4]} 50. Nd4 {[%clk 0:00:03.7]} 50... Qf1+ {[%clk 0:00:34.4]} 51.
Kd2 {[%clk 0:00:03.8]} 51... Qd3+ {[%clk 0:00:34.9]} 52. Ke1 {[%clk 0:00:02.2]}
52... Qxe3+ {[%clk 0:00:34.5]} 53. Ne2 {[%clk 0:00:03.1]} 0-1

[Event "*** Titled Tuesday Blitz"]
[Site "Chess.com"]
[Date "2021.04.27"]
[Round "4"]
[White "olksuna"]
[Black "stolencandy13"]
[Result "1-0"]
[WhiteElo "2653"]
[BlackElo "2478"]
[TimeControl "180+1"]
[EndTime "10:39:37 PDT"]
[Termination "olksuna won on time"]

1. e4 {[%clk 0:03:00.9]} 1... c6 {[%clk 0:02:55.9]} 2. Nf3 {[%clk 0:03:00.3]}
2... d5 {[%clk 0:02:56.8]} 3. Nc3 {[%clk 0:03:00.3]} 3... Bg4 {[%clk 0:02:56.1]}
4. h3 {[%clk 0:03:00.3]} 4... Bxf3 {[%clk 0:02:53.5]} 5. Qxf3 {[%clk 0:03:01.2]}
5... Nf6 {[%clk 0:02:51.2]} 6. d3 {[%clk 0:02:54.8]} 6... e6 {[%clk 0:02:49.9]}
7. a3 {[%clk 0:02:55]} 7... Nbd7 {[%clk 0:02:48.7]} 8. g3 {[%clk 0:02:54.6]}
8... Bd6 {[%clk 0:02:45.8]} 9. Bg2 {[%clk 0:02:54.3]} 9... O-O {[%clk
0:02:45.6]} 10. O-O {[%clk 0:02:54.4]} 10... Qb6 {[%clk 0:02:42.6]} 11. Qe2
{[%clk 0:02:47.3]} 11... Bxg3 {[%clk 0:02:29.3]} 12. Na4 {[%clk 0:02:26.9]}
12... Qd4 {[%clk 0:02:20.1]} 13. Nc3 {[%clk 0:02:01.5]} 13... Bc7 {[%clk
0:01:46.3]} 14. Be3 {[%clk 0:01:56.6]} 14... Qe5 {[%clk 0:01:46.5]} 15. f4
{[%clk 0:01:57.2]} 15... Qh5 {[%clk 0:01:46.5]} 16. Qf2 {[%clk 0:01:53.8]} 16...
e5 {[%clk 0:01:27.9]} 17. exd5 {[%clk 0:01:40.5]} 17... cxd5 {[%clk 0:01:26.1]}
18. fxe5 {[%clk 0:01:25]} 18... Qxe5 {[%clk 0:01:24.5]} 19. Bf4 {[%clk
0:01:17.3]} 19... Qxf4 {[%clk 0:01:23.5]} 20. Qxf4 {[%clk 0:01:18.2]} 20... Bxf4
{[%clk 0:01:23.3]} 21. Rxf4 {[%clk 0:01:19.1]} 21... Rac8 {[%clk 0:01:18.7]} 22.
Rd4 {[%clk 0:01:09.8]} 22... Nb6 {[%clk 0:01:04.6]} 23. Re1 {[%clk 0:01:06.6]}
23... Rfe8 {[%clk 0:01:02.7]} 24. Rxe8+ {[%clk 0:01:02.6]} 24... Rxe8 {[%clk
0:01:03.6]} 25. Nxd5 {[%clk 0:00:59]} 25... Nfxd5 {[%clk 0:00:48.4]} 26. Bxd5
{[%clk 0:00:58.4]} 26... Nxd5 {[%clk 0:00:21.3]} 27. Rxd5 {[%clk 0:00:59.3]}
27... g6 {[%clk 0:00:20.5]} 28. Kf2 {[%clk 0:00:55.2]} 28... Re7 {[%clk
0:00:20.1]} 29. c4 {[%clk 0:00:54.2]} 29... Kg7 {[%clk 0:00:19.6]} 30. b4 {[%clk
0:00:53.9]} 30... f5 {[%clk 0:00:19.6]} 31. b5 {[%clk 0:00:49]} 31... Kf6 {[%clk
0:00:19.3]} 32. c5 {[%clk 0:00:48.2]} 32... g5 {[%clk 0:00:16.8]} 33. d4 {[%clk
0:00:40.6]} 33... g4 {[%clk 0:00:14.6]} 34. hxg4 {[%clk 0:00:37.2]} 34... fxg4
{[%clk 0:00:14.5]} 35. c6 {[%clk 0:00:37.6]} 35... bxc6 {[%clk 0:00:12.9]} 36.
bxc6 {[%clk 0:00:38.5]} 36... Rc7 {[%clk 0:00:08.5]} 37. Rd6+ {[%clk 0:00:36.5]}
37... Kf5 {[%clk 0:00:07.8]} 38. d5 {[%clk 0:00:33.3]} 38... h5 {[%clk
0:00:07.1]} 39. Rd7 {[%clk 0:00:32.1]} 39... Rc8 {[%clk 0:00:07.3]} 40. c7
{[%clk 0:00:32.4]} 40... Ke4 {[%clk 0:00:05]} 41. d6 {[%clk 0:00:31.2]} 41...
Rf8+ {[%clk 0:00:04.9]} 42. Kg2 {[%clk 0:00:30.5]} 42... h4 {[%clk 0:00:04.6]}
43. Rd8 {[%clk 0:00:30.6]} 43... h3+ {[%clk 0:00:05]} 44. Kg3 {[%clk 0:00:29.7]}
44... Rf3+ {[%clk 0:00:04.2]} 45. Kxg4 {[%clk 0:00:29.7]} 45... h2 {[%clk
0:00:04.6]} 46. Rh8 {[%clk 0:00:27]} 46... Rf4+ {[%clk 0:00:02]} 47. Kg3 {[%clk
0:00:25.9]} 47... Rf8 {[%clk 0:00:01.5]} 48. Rxh2 {[%clk 0:00:21.4]} 1-0